Cogmind - Beta 17.1 @@@ ROGUE MODE // 2026.08.28 @ 13:31:15 Player: naththebg Result: Self-destructed Performance ------------- Evolutions (1) 500 Regions Visited (2) 400 Robots Destroyed (43) 215 Value Destroyed (1051) 1051 Prototype IDs (3) 60 Alien Tech Used (0) 0 Bonus (5750) 5750 TOTAL SCORE: 7976 Bonus ------- Prayed to X0-1V1 5000 Major X0-1V1 Interference 750 Cogmind --------- Core Integrity 72/250 Matter 187/300 Energy 250/250 System Corruption 0% Temperature Cool (0) Movement Treading (160) Location -9/Materials Parts ------- > --- POWER (1) -------- Ion Engine > --- PROPULSION (2) --- Improved Treads (fused) Spiked Treads (fused) > --- UTILITY (4) ------ Large Storage Unit Advanced Visual Processing Unit (fused) Hacking Suite Self-contained Transmogrifier > --- WEAPON (2) ------- Minigun (fused) Minigun (fused) > --- INVENTORY (15) --- Light Ion Engine Light Treads Light Treads Aluminum Leg Aluminum Leg Wheel Compact Wheel Heat Sink Heat Sink Huge Storage Unit Medium Laser Improved Medium Laser Light EM Pulse Cannon Particle Cannon Peak State ------------ > --- POWER ------------ Reinforced Ion Engine > --- PROPULSION ------- Light Treads Improved Treads > --- UTILITY ---------- Large Storage Unit Advanced Visual Processing Unit Self-contained Transmogrifier X0-1V1's Piety Tracker > --- WEAPON ----------- Improved Medium Laser Shotgun > --- INVENTORY -------- Ion Engine Light Ion Engine Light Ion Engine Light Treads Light Treads Aluminum Leg Aluminum Leg Wheel Compact Wheel Huge Storage Unit Core Shielding Medium Laser Improved Medium Laser Improved Medium Laser Light EM Pulse Cannon [Rating: 38] Favorites ----------- Power Reinforced Ion Engine Engine Reinforced Ion Engine Propulsion Light Treads Treads Light Treads Leg Improved Aluminum Leg Utility Large Storage Unit Device Self-contained Transmogrifier Storage Large Storage Unit Processor Advanced Visual Processing Unit Hackware Hacking Suite Protection Core Shielding Weapon EM Pulse Gun Energy Gun EM Pulse Gun Energy Cannon Light EM Pulse Cannon Ballistic Gun Minigun Build | -11 -10 -9 ------- Run | Yrd Mat Mat Slots Evolved 2 | . . 2 Power . | . . . Propulsion . | . . . Utility 2 | . . 2 Weapon . | . . . Parts Attached 22 | 6 4 12 Power 3 | 1 2 . Engine 3 | 1 2 . Core . | . . . Reactor . | . . . Propulsion 7 | 2 . 5 Treads 7 | 2 . 5 Leg . | . . . Wheel . | . . . Hover . | . . . Flight . | . . . Utility 7 | 1 2 4 Device 2 | . . 2 Storage 2 | 1 1 . Processor 1 | . . 1 Hackware 1 | . . 1 Protection 1 | . 1 . Artifact . | . . . Weapon 5 | 2 . 3 Energy Gun 4 | 2 . 2 Energy Cannon 1 | . . 1 Ballistic Gun . | . . . Ballistic Cannon . | . . . Launcher . | . . . Special Weapon . | . . . Impact Weapon . | . . . Slashing Weapon . | . . . Piercing Weapon . | . . . Special Melee Weapon . | . . . Unidentified Prototypes 2 | . . 2 Parts Lost 7 | . . 7 Power 1 | . . 1 Propulsion 3 | . . 3 Utility 2 | . . 2 Weapon 1 | . . 1 Highest Loss Streak 4 | . . 4 To Critical Strikes 1 | . . 1 Average Backups 11 | 4 10 12 Power 2 | . 2 2 Propulsion 4 | 3 4 4 Utility 1 | . 1 2 Weapon 2 | . 1 3 Tool/Special . | . . . Unused Backups 13 | . . 13 Power 1 | . . 1 Propulsion 5 | . . 5 Utility 3 | . . 3 Weapon 4 | . . 4 Tool/Special . | . . . Average Slot Usage (%) 94 | . 95 93 Engine 11 | . 14 8 Treads 23 | . 27 19 Device 8 | . 1 17 Storage 12 | . 14 11 Processor 4 | . . 9 Protection 6 | . 8 4 Energy Gun 22 | . 28 13 Energy Cannon 1 | . . 2 Ballistic Gun 2 | . . 5 Peak Build Rating 38 | 6 19 38 Average Rating 16 | 4 8 27 On Entrance 8 | . 6 19 Avg Prop Armor Cover (%) 13 | 41 7 7 Naked Turns . | . . . Heaviest Build 38 | 12 34 38 Greatest Support 46 | 40 40 46 Greatest Overweight (x) 1 | . 1 1 Average Overweight (x) . | . . . Largest Inventory Capacity 15 | 8 15 15 Average Capacity 14 | 7 14 15 Most Carried 15 | 6 14 15 Average Carried 11 | 5 10 12 Final Capacity 15 | 8 15 15 Final Carried 14 | 6 14 14 Transmogrified Parts 11 | . 2 9 Integrity Recovered 162 | . 43 119 Class Distribution -------------------- 100% | Mutant Dominant Class ---------------- Mutant | -10/Materials Mutant | -9/Materials Resources | -11 -10 -9 ----------- Run | Yrd Mat Mat Matter Collected 516 | 220 80 216 Remotely . | . . . Salvage Created 1471 | 14 534 923 Parts 117 | 2 31 84 Haulers Intercepted 2 | . 1 1 Recyclers Shooed 4 | . 2 2 Parts Field Recycled . | . . . Retrieved Matter . | . . . Parts Self-Destructed . | . . . Prevented . | . . . Parts Restored . | . . . Kills | -11 -10 -9 ------- Run | Yrd Mat Mat Combat Hostiles Destroyed 27 | . 7 20 Guns 23 | . 3 20 AOE 4 | . 4 . Classes Destroyed 11 | 1 6 4 Worker 1 | . 1 . Builder 3 | . 1 2 Tunneler 1 | 1 . . Hauler 2 | . 1 1 Recycler 1 | . 1 . Operator 3 | . . 3 Watcher 5 | . 2 3 Swarmer 7 | . . 7 Grunt 14 | . 7 7 Duelist 1 | . . 1 Sentry 5 | . . 5 Best Kill Streak 7 | 1 5 7 Combat Bots Only 5 | . 4 5 Max Kills in Single Turn 3 | 1 3 2 Gunslinging . | . . . Exploded 3 | . 3 . Melee . | . . . Uniques/NPCs Destroyed . | . . . Combat | -11 -10 -9 -------- Run | Yrd Mat Mat Hostile Shots Fired 160 | . 21 139 Missed 40 | . 8 32 Hits 120 | . 13 107 Melee 1 | . . 1 Projectile 119 | . 13 106 Critical Strikes 3 | . . 3 Actively Blocked 1 | . . 1 Damage Taken 1311 | . 220 1091 Core 201 | . 23 178 Absorbed by Shields 31 | . . 31 Redirected to Shielding 26 | . 5 21 Core Remaining (%) 88 | 100 77 . Volleys Fired 96 | 1 30 65 Largest 2 | 2 2 2 Hottest 112 | 80 80 112 Shots Fired 188 | 2 60 126 Gun 178 | 2 60 116 Cannon 10 | . . 10 Launcher . | . . . Special . | . . . Kinetic 47 | . . 47 Thermal 59 | . . 59 Explosive . | . . . Electromagnetic 82 | 2 60 20 Robot Hit Streak 9 | 1 9 8 Robot Miss Streak 6 | . 6 5 Penetration Max . | . . . Secondary Targets 1 | . . 1 Max Gunslinging Chain 1 | . . 1 Shots Hit Robots 106 | 1 29 76 Core Hits 58 | 1 19 38 Critical Kills . | . . . Critical Parts Destroyed . | . . . Critical Strikes 5 | . 2 3 Burn 3 | . . 3 Corrupt 2 | . 2 . Melee Attacks . | . . . Impact . | . . . Slashing . | . . . Piercing . | . . . Sneak Attacks . | . . . Combat Hostiles . | . . . Follow-up Attacks . | . . . Damage Inflicted 2037 | 24 624 1389 Guns 1643 | 24 398 1221 Cannons 165 | . . 165 Explosions 217 | . 217 . Melee . | . . . Ramming 12 | . 9 3 Kinetic 585 | . . 585 Thermal 733 | . 179 554 Explosive 38 | . 38 . Electromagnetic 669 | 24 398 247 Impact . | . . . Slashing . | . . . Piercing . | . . . Highest Corruption . | . . . Average Corruption . | . . . Corruption Purged . | . . . Corruption Blocked . | . . . Overload Shots . | . . . Overflow Damage . | . . . Projectiles . | . . . Explosions . | . . . Melee . | . . . Knockbacks . | . . . Impact . | . . . Kinetic . | . . . Secondary . | . . . Self-Inflicted Damage 39 | . 39 . Shots 1 | . 1 . Rammed 2 | . 1 1 Targets Rammed 2 | . 1 1 Kicked . | . . . Crushed . | . . . Highest Temperature 297 | 18 240 297 Average Temperature 77 | 12 64 84 Received Heat Transfer 431 | . 108 323 Siege Activations . | . . . Martial Activations . | . . . Shielding Activations . | . . . Robots Disrupted . | . . . Combat Hostiles . | . . . Robots Corrupted . | . . . Combat Hostiles . | . . . Parts Fried 2 | . 1 1 Impact Corruptions . | . . . Robots Melted . | . . . Combat Hostiles . | . . . Parts Melted 1 | . . 1 Heat Transferred 1693 | . 250 1443 Parts Sabotaged . | . . . Parts Stolen . | . . . Parts Stripped . | . . . Power Chain Reactions 2 | . 2 . Alert | -11 -10 -9 ------- Run | Yrd Mat Mat Maximum Alert Level 1 | . . 1 Low Security (%) 79 | 100 100 48 Level 1 20 | . . 51 Level 2 . | . . . Level 3 . | . . . Level 4 . | . . . Level 5 . | . . . High Security . | . . . Max Security . | . . . Peak Influence 316 | 5 179 316 Initial 3 | . 3 . Average 74 | . 20 160 Influence Increases 939 | 5 278 656 Destroy 0b10 Robot/C 540 | . 140 400 Destroy 0b10 Robot/NC 80 | 5 30 45 Destroy Leader 154 | . 46 108 Successful Hack 41 | . . 41 Disable Machine 30 | . 15 15 Destroy Structure 34 | . 32 2 Lose Combat Pursuer 60 | . 15 45 Influence Decreases 627 | . 283 344 Entered New Map 2 | . 2 . Time Decay 405 | . 131 274 Lost Part 70 | . . 70 Purge Threat 150 | . 150 . Squads Dispatched 3 | . 1 2 Investigation . | . . . Extermination . | . . . Reinforcement 3 | . 1 2 Assault . | . . . Garrison . | . . . Intercept . | . . . Searches Triggered . | . . . Construction Impeded . | . . . Haulers Reinforced . | . . . Active Scanning Responses . | . . . Cargo Convoy Interrupts . | . . . Stealth | -11 -10 -9 --------- Run | Yrd Mat Mat Distress Signals 2 | . . 2 Communications Jammed . | . . . Distress Signals . | . . . Times Spotted 51 | . 14 37 Peak Tracking Total 10 | . 5 10 Tactical Retreats 2 | . 1 1 Traps | -11 -10 -9 ------- Run | Yrd Mat Mat Traps Triggered . | . . . Indirectly . | . . . Trap Hack Attempts . | . . . Triggered . | . . . Disarmed . | . . . Reprogrammed . | . . . Reused . | . . . Traps Extracted . | . . . Installed . | . . . Triggered . | . . . Machines | -11 -10 -9 ---------- Run | Yrd Mat Mat Machines Disabled 3 | . 2 1 Max in Single Turn 1 | . 1 1 Machines Repaired . | . . . Machines Dismantled . | . . . Machines Sabotaged . | . . . Overloaded Fab Kills . | . . . Hacking | -11 -10 -9 --------- Run | Yrd Mat Mat Machines Accessed 10 | . 6 4 Terminals 7 | . 4 3 Fabricators . | . . . Repair Stations . | . . . Recycling Units 2 | . 2 . Scanalyzers 1 | . . 1 Garrison Access . | . . . Total Hacks 28 | . 15 13 Successful 16 | . 8 8 Failed 12 | . 7 5 Catastrophic 2 | . 1 1 Database Lockouts . | . . . Manual 10 | . 3 7 Terminals 22 | . 12 10 Fabricators . | . . . Repair Stations . | . . . Recycling Units 3 | . 3 . Scanalyzers 3 | . . 3 Garrison Access . | . . . Terminal Hacks 8 | . 6 2 Part Schematic 1 | . 1 . Robot Analysis 1 | . 1 . Branch Access Points 1 | . . 1 Alert Level 1 | . 1 . Unreport Threat 1 | . 1 . Locate Traps 2 | . 1 1 Zone Layout 1 | . 1 . Fabricator Hacks . | . . . Repair Station Hacks . | . . . Recycling Unit Hacks 2 | . 2 . Retrieve Components 2 | . 2 . Scanalyzer 2 | . . 2 Retrieve Study 2 | . . 2 Garrison Access Hacks . | . . . Unauthorized Hacks 4 | . . 4 Terminals 4 | . . 4 Botnet 1 | . . 1 Operators 1 | . . 1 Skim 2 | . . 2 Fabricators . | . . . Repair Stations . | . . . Recycling Units . | . . . Scanalyzers . | . . . Garrison Access . | . . . Data Cores Recovered 2 | . . 2 Used . | . . . Hacking Detections 7 | . 4 3 Full Trace Events . | . . . Feedback Events . | . . . Feedback Blocked . | . . . Robot Schematics Acquired . | . . . Robots Built . | . . . Authchips . | . . . Time . | . . . Total Robot Build Rating . | . . . Part Schematics Acquired 1 | . 1 . Parts Built . | . . . Authchips . | . . . Time . | . . . Total Part Build Rating . | . . . Part Studies Acquired 2 | . . 2 Parts Repaired . | . . . Time . | . . . Parts Recycled . | . . . Recycled Matter . | . . . Retrieved Matter . | . . . Retrieved Components 3 | . 3 . Parts Scanalyzed . | . . . Part Schematics Acquired . | . . . Parts Damaged . | . . . Bothacking | -11 -10 -9 ------------ Run | Yrd Mat Mat Used RIF Installer . | . . . Robots Hacked . | . . . Non-combat . | . . . Combat . | . . . Robot Hacks Applied . | . . . Relay Couplers Released . | . . . Fabnet Peak Effective % . | . . . Robots Rewired . | . . . Allies Hacked . | . . . Hacks Repelled . | . . . Allies | -11 -10 -9 -------- Run | Yrd Mat Mat Total Allies . | . . . Largest Group . | . . . Highest-Rated Group . | . . . Highest-Rated Ally . | . . . Total Orders . | . . . Ally Attacks . | . . . Total Damage . | . . . Kills . | . . . Allies Corrupted . | . . . Allies Melted . | . . . X0-1V1 Amusement Gains 43 | . 24 19 Average Entertainment 39 | . 42 39 Good Acts 3 | . . 3 Bad Acts 4 | . . 4 Intel | -11 -10 -9 ------- Run | Yrd Mat Mat Active Infowar (turns) 755 | . . 755 Optics 687 | . . 687 Structural 68 | . . 68 Robot Analysis Total 1 | . 1 . Derelict Logs Recovered . | . . . Drone Launches . | . . . Drone Recoveries . | . . . Exploration | -11 -10 -9 ------------- Run | Yrd Mat Mat Turns Passed 1921 | 75 1090 756 Spaces Moved 937 | 47 595 295 Core 17 | 17 . . Treads 920 | 30 595 295 Legs . | . . . Wheels . | . . . Hover . | . . . Flight . | . . . Fastest Speed 50 | 50 160 160 Average Speed 164 | 120 163 175 Slowest Speed 240 | 160 240 240 Overloaded Moves . | . . . Propulsion Burnouts . | . . . Robots Hopped . | . . . Potential Cave-ins . | . . . Cave-ins Triggered . | . . . Exploration Rate (%) 39 | 3 76 40 Regions Visited 2 Branch Regions . Pre-discovered Areas . | . . . Known Exits Taken . | . . . Unknown Exits Taken 2 | 1 1 . Scrap Searched . | . . . Spaces Dug . | . . . Terrain Destroyed 40 | . 40 . Melee . | . . . Projectile . | . . . AOE 40 | . 40 . Terrain Rammed . | . . . Walls Destroyed . | . . . Machines Disabled . | . . . Actions | -11 -10 -9 --------- Run | Yrd Mat Mat Total 1125 | 62 653 410 Wait 36 | . 17 19 Move 935 | 46 594 295 Hop . | . . . Pick Up 24 | 9 6 9 Fast Attach 8 | 3 2 3 Attach 10 | 3 . 7 Detach . | . . . Swap 10 | . 2 8 Drop 4 | . 1 3 Fire 96 | 1 30 65 Melee . | . . . Ram . | . . . Kick . | . . . Crush 2 | . 1 1 Escape Stasis . | . . . Rewire . | . . . Trap . | . . . Miscellaneous . | . . . Route ------- -11/Scrapyard -10/Materials (discovered 4 exits: *Mat x2 / [*Min] / [*Sub]) -9/Materials (discovered 4 exits: [*Mat] / Min / *Sto x2) History --------- Turn | Location | Event 12 | -11/Scrapyard | Discovered new exit (range 14) 76 | -11/Scrapyard | Entered Materials 318 | -10/Materials | Build established: Mutant 359 | -10/Materials | Discovered new exit (range 14) 611 | -10/Materials | Discovered new exit (range 14) 861 | -10/Materials | Discovered new exit (range 16) 1023 | -10/Materials | Discovered new exit (range 10) 1037 | -10/Materials | Made a sacrifice at D.C.S.S. Altar Unit 1037 | -10/Materials | Forcibly received Sfc. Transmogifier from X0-1V1 1166 | -10/Materials | Entered another Materials area 1166 | -9/Materials | Evolved 2 slots: Utility x2 1404 | -9/Materials | X0-1V1 whisked you away to safety 1450 | -9/Materials | Lost 4 parts (2n1u1w) 1462 | -9/Materials | Discovered new exit (range 11) 1569 | -9/Materials | Core integrity fell below 50% 1834 | -9/Materials | Discovered new exit (range 23) 1922 | -9/Materials | Identified exit to Mines 1922 | -9/Materials | Identified exit to Storage 1922 | -9/Materials | Self-destructed Last Messages --------------- 01872_ U-05 Engineer builds a Door. 01873_ G-34 Mercenary destroyed. 01876_ U-05 Engineer destroyed. 01879_ G-34 Mercenary destroyed. 01880_ R-06 Scavenger collects Sml. Laser. 01880_ K-01 Serf collects debris. 01881_ Destroyed Structural Scanner. 01882_ K-01 Serf collects debris. 01886_ W-16 Scout destroyed. 01888_ K-01 Serf collects debris. 01892_ Acquired Hacking Suite. 01894_ Sfc. Transmogrifier converts Imp. Treads into Spk. Treads. 01894_ K-01 Serf collects debris. 01922_ Connecting with Terminal... >>Access(Branch) Found 3 branch access points: (86,12) Mines (53,43) Storage (86,38) Storage Map updated. Map ----- +----------------------------------------------------+ | ?????????????????????????????????????????????????? | | ?????????????????????????????????????????????????? | | ?????????????????????????????????????????????????? | | ?????????????????????????????????????????????????? | | ?????????????????????????????????????????????????? | | ?????????????????????????????????????????????????? | | ?????????????????????????????????????????????????? | | ?????????????????????????????????????????????????? | | ?????????????????????????????????????????????????? | | ?????????????????????????????????????????????????? | | ?????????????????????????????????????????????????? | | ?????????????????????????????????????????????????? | | ?????????????????????????????????????????????????? | | ?????????????????????????????????????????????????? | | ?????????????????????????????????????????????????? | | ?????????????????????????????????????????????????? | | ?????????????????????????????????????????????????? | | ?????????????????????????????????????????????????? | | ?????????????????????????????????????????????????? | | ?????????????????????????????????????????????????? | | ?????????????????????????????????????????????????? | | ?????????????????????????????#####?????????#?????? | | ?????????????????????######### #???????? #?????? | | ?????????????????????# ##[ #???????? #?????? | | ?????????????????????# "T" ## |#???????" #?????? | | ?????????????????????# @ ## #??????? #?????? | | ?????????????????????# ## #?????? #?????? | | ?????????????????????# ## /#?????? ??????? | | ?????????????????????# #? #?????/ !??????? | | ?????????????????????####+######+######+########## | | ?????????????????????# * = ==%[| | | ?????????????????????# = */%=%=! | | ?????????????????????# %=!==!* | | ??????????????######## ###########* =%!=# #### | | ??????????????# !%[= # #?????????# ! #? #??? | | ?????????????## "S! # #?????????#! !#???#?]? | | ?????????????# """ + #?????????##!!!!##??????? | | ?????????????## "" # #??????????######???????? | | ??????????????# # ########????????????????? | | ??????????????# ! ]# # #????????????????? | | ??????????????######## # #????????????????? | | ?????????????????????# # #????????????????? | | ?????????????????????# # #????????????????? | | ?????????????????????# # #????????????????? | | ?????????????????????# # #????????????????? | | ???????????????####### + #????????????????? | | ???????????????# =%# #????????????????? | | ???????????????# =%! # #????????????????? | | ???????????????# # #????????????????? | | ???????????????# # #????????????????? | +----------------------------------------------------+ Best States ------------- Heat Dissipation 28 Energy Generation 12 Energy Capacity 265 Matter Stores 300 Matter Capacity 300 Sight Range 23 Terrain Scan Density 10 Core Shielding 20 Evasion (%) 50 Recoil Reduction 2 Offensive Hacking 10 Item Schematics ----------------- Hcp. Storage Unit | -10/Materials | Hacked Robot Schematics ------------------ None Fabricated ------------ Nothing Repaired ---------- Nothing Studied --------- Lgt. EM Pulse Cannon | -9/Materials | Hacked Lgt. Treads | -9/Materials | Hacked Alien Tech Used ----------------- None Achievements -------------- None Challenges ------------ None Game ------ Seed SignalDroneGreatsword Manual? 0 Play Time 00:19:16 Cumulative 597.5 hours Start 2026.08.28 @ 13:18:48 End 2026.08.28 @ 13:31:15 Sessions 1 Manual Loads 0 Difficulty Rogue Special Mode None Game No. 328 Rogue 328 Adventurer 0 Explorer 0 Win Type - Total 20 Types 10/1/3/1/1/0/1/1/0/2 Lore% 86 Gallery% 84 Achievement% 75 Wizard Run 0 Options --------- Layout 0 ASCII 0 Keyboard 0 Movement Mouse Keybinds 0 Fullscreen 1 Font 18/SmallcapsGlow Map View 76x50 Zoom Use 0% Tactical HUD 1 Map Filters NONE Filters NONE Steam 1 RUN: 877e7c02-1ee1-4303-86d4-a3554e225f13